{"text_format":"1","workbook":"xlsx","n_sheets":6,"sheets":["Note","1) Dati PDP dichiarati ","2) Dati Bollette dichiarati","3) Parametri","4) Risultati di calcolo","Service"],"not_rendered":{"charts":0,"images":1,"macros":1,"external_links":0,"defined_names":5,"comments":0,"pivot_tables":0},"unopened":[],"bounds":{"document_bytes":16777216,"sheet_cells":100000,"rows_first":2000,"rows_last":500,"rows_between":2000,"halvings":0,"cell_chars":16384,"cell_head_chars":4096},"cells_cut":0,"cells_raw":0,"read":"whole","date_system":"1900"}

{"sheet":"Note","index":0,"n_rows":10,"n_cols":3,"rows_kept":10,"cut":false,"hidden":false,"merged":[]}
[]
[null,null,"Meccanismo di cui all'art. 16.quinques del TIV, come integrato con delibera AEEGSI 279/2017/R/COM"]
[null,"a","Il presente file è stato predisposto dalla CSEA ai fini del calcolo, per l'anno 2016,  dell'entità del contributo previsto dall'art. 16.quinques del TIV - \"Meccanismo incentivante per una maggiore diffusione della bolletta elettronica, atto alla reintegrazione del differenziale tra lo sconto applicato ai sensi dell’articolo  13,  comma  6  dell’Allegato  A  alla  deliberazione 501/2014/R/COM e la stima del costo evitato conseguito"]
[null,"b","Ai sensi di quanto previsto dall'art. 16.quinques.2 del TIV, possono partecipare al meccanismo di cui al presente articolo i soli esercenti la maggior tutela  che nel  corso  di  ciascun  anno di ciascun anno oggetto  di reintegrazione hanno emesso bollette con applicazione  dello  sconto  di  cui  all’articolo  13,  comma  6 dell’Allegato   A   alla   deliberazione   501/2014/R/com,   nei   \nconfronti  di  una  percentuale  minima \"a\", indicata alla Tabelle 13 del TIV, di  clienti di  cui  al comma   2.3,   lettere   a)   e   c) del TIV (per gli anni 2016 e 2017 a = 7%)"]
[null,"c","Il file si compone di 4 distinti fogli di lavoro, oltre al presente foglio \"note\" ed ul unteriore foglio \"Service\" utilizzato per l'automazione di alcune funzioni. L'esercente che intende partecipare al meccanismo di compensazione, è tenuto a compilare, nelle celle editabili, i fogli di lavoro denominati \"1) Dati PDP dichiarati\"; \"2) Dati Bollette dichiarati."]
[null,"d","Nel foglio \"3) Parametri\", sono riepilogati i parametri di calcolo utilizzati, secondo quanto disposto dal TIV."]
[null,"e","Nel foglio \"4) Risultati di calcolo\", sono riepilogati i risultati dei calcoli sviluppati."]
[]
[]
[null,"Rev. 1"]

{"sheet":"1) Dati PDP dichiarati ","index":1,"n_rows":36,"n_cols":8,"rows_kept":36,"cut":false,"hidden":false,"merged":[[31,2,33,2],[27,2,29,2],[11,2,13,2],[19,2,21,2],[23,2,25,2],[19,3,21,4],[17,3,17,4],[6,2,8,2],[6,3,8,3],[6,4,7,4],[31,3,33,4],[32,5,32,6],[27,3,29,4],[28,5,28,6],[23,3,25,4],[27,7,29,7],[15,5,15,6],[2,5,2,7],[3,5,3,7],[24,5,24,6],[20,5,20,6],[12,5,12,6],[11,7,13,7],[5,5,5,6],[10,5,10,6],[2,2,2,4],[3,2,3,4],[6,7,8,7],[16,3,16,4],[16,6,17,6],[7,5,7,6],[11,3,13,3],[11,4,12,4]]}
[]
[]
[null,null,"Ragione sociale esercente il servizio di Maggior Tutela                                                                                                                                      (effettuare scelta tramite il menù a tendina)"]
[null,null,"P.IVA",null,null,{"$f":"VLOOKUP(F3,Service!F5:N150,2,FALSE)","v":{"$error":"#N/A"}}]
[]
[null,null,null,null,null,"Dichiarazione di raggiungimento livello di soglia nell'anno Y"]
[null,null,1,"E' stato raggiunto nell'anno Y il livello di soglia di cui alla Tab. 13 del TIV necessario ai fini della partecipazione al meccanismo incentivante per una maggiore diffusione della bolletta elettronica ?","Valore di soglia \"a\" di cui alla Tab. 13 del TIV","Punti di prelievo di clienti domestici in BT","Altri punti di prelievo in BT","Il contenuto delle celle deve essere inserito utilizzando il menù a tendina"]
[null,null,null,null,null," (anno di riferimento del dato: 2016)"]
[null,null,null,null,"a ≥ 7%","SI","SI"]
[]
[null,null,null,null,null,"Dichiarazione di raggiungimento livello di soglia nell'anno Y - 1"]
[null,null,2,"E' stato raggiunto nell'anno Y-1 il livello di soglia di cui alla Tab. 13 del TIV necessario ai fini della partecipazione al meccanismo incentivante per una maggiore diffusione della bolletta elettronica ?","Valore di soglia \"a\" di cui alla Tab. 13 del TIV","Punti di prelievo di clienti domestici in BT","Altri punti di prelievo in BT","Il contenuto delle celle deve essere inserito utilizzando il menù a tendina"]
[null,null,null,null,null,"Anno di riferimento del dato: Y - 1. Attenzione: per l'anno 2106 le celle non debbono essere valorizzate"]
[null,null,null,null,"a ≥ 7%","NO","NO"]
[]
[null,null,null,null,null,"Dichiarazione della tipologia di esercente la maggior tutela"]
[null,null,3,"Esercente la maggior tutela che alla data del 31/12/2015 serviva un numero di pdp superiore a 10 ML",null,"SI","Effettuare la scelta nella cella compilabile (sfondo bianco), tramite il menù a tendina"]
[null,null,4,"Esercente la maggior tutela che alla data del 31/12/2015 serviva un numero di pdp inferiore a 10 ML di clienti",null,{"$f":"IF($F$17=\"SI\",\"NO\",\"SI\")","v":"NO"}]
[]
[null,null,5,"PDPc,Y - per ciascuna delle tipologie di clienti c di cui al comma 2.3, lettere a) e c), il numero di punti di prelievo serviti nell’anno Y nei confronti dei quali è stata emessa almeno una bolletta con applicazione dello sconto di cui all’articolo 13, comma 6 dell’Allegato A alla deliberazione 501/2014/R/com; i clienti multisito, cui viene emessa un'unica bolletta contabilizzante i consumi relativi a tutti i punti di prelievo serviti, vengono contabilizzati come unico punto di prelievo",null,"Punti di prelievo di clienti domestici in BT","Altri punti di prelievo in BT"]
[null,null,null,null,null," (anno di riferimento del dato: 2016)"]
[]
[]
[null,null,6,"PDPc,YTOT - è per ciascuna delle tipologie di clienti c di cui al comma 2.3, lettere a) e c), il numero di punti di prelievo serviti nell’anno Y",null,"Punti di prelievo di clienti domestici in BT  ","Altri punti di prelievo in BT"]
[null,null,null,null,null," (anno di riferimento del dato: 2016)"]
[]
[]
[null,null,7,"PDPc,anteY - è nei casi in cui l’esercente la maggior tutela nell’anno Y-1 non abbia raggiunto il livello a di cui alla Tabella 13, per ciascuna delle tipologie di clienti c di cui al comma 2.3, lettere a) e c), il numero di punti di prelievo serviti nell’anno Y-1 – nei confronti dei quali è stata emessa almeno una bolletta con applicazione dello sconto di cui all’articolo 13, comma 6 dell’Allegato A alla deliberazione 501/2014/R/com; i clienti multisito, cui viene emessa un'unica bolletta contabilizzante i consumi relativi a tutti i punti di prelievo serviti, vengono contabilizzati come unico punto di prelievo. Nei casi diversi dal precedente alinea, il valore è pari a zero.",null,"Punti di prelievo di clienti domestici in BT","Altri punti di prelievo in BT","Le celle possono essere compilate solo se nell'anno Y - 1, nel rigo 2,  è stato scelto \"NO\"."]
[null,null,null,null,null,"Anno di riferimento del dato: Y - 1. Attenzione: per l'anno 2106 le celle non debbono essere valorizzate"]
[null,null,null,null,null,0,0]
[]
[null,null,8,"PDPc,Y-2 - per ciascuna delle tipologie di clienti c di cui al comma 2.3, lettere a) e c), con riferimento alle determinazioni relative agli anni 2016 e 2017, il numero di punti di prelievo serviti nell’anno Y-2 nei confronti dei quali è stata emessa almeno una bolletta in formato elettronico; i clienti multisito, cui viene emessa un'unica bolletta contabilizzante i consumi relativi a tutti i punti di prelievo serviti, vengono contabilizzati come unico punto di prelievo",null,"Punti di prelievo di clienti domestici in BT","Altri punti di prelievo in BT"]
[null,null,null,null,null," (anno di riferimento del dato: 2014)"]
[]
[]
[null,"Rev. 1"]

{"sheet":"2) Dati Bollette dichiarati","index":2,"n_rows":31,"n_cols":7,"rows_kept":31,"cut":false,"hidden":false,"merged":[[2,3,2,4],[2,5,2,6],[3,3,3,4],[3,5,3,6],[6,3,8,4],[7,5,7,6],[22,3,24,4],[23,5,23,6],[26,3,28,4],[27,5,27,6],[10,3,12,4],[11,5,11,6],[14,3,16,4],[15,5,15,6],[18,3,20,4],[19,5,19,6],[6,2,8,2],[26,2,28,2],[22,2,24,2],[18,2,20,2],[14,2,16,2],[10,2,12,2]]}
[]
[]
[null,null,null,"Ragione sociale esercente il servizio di Maggior Tutela",null,{"$f":"'1) Dati PDP dichiarati '!F3:G3","v":0}]
[null,null,null,"P.IVA",null,{"$f":"'1) Dati PDP dichiarati '!F4:G4","v":{"$error":"#N/A"}}]
[null,null,null,null,null,{"$f":"'1) Dati PDP dichiarati '!F14","v":"NO"},{"$f":"'1) Dati PDP dichiarati '!G14","v":"NO"}]
[]
[null,null,9,"Bollc,YEM_SC - per ciascuna delle tipologie di clienti c di cui al comma 2.3, lettere a) e c), il numero di bollette contenenti lo sconto di cui all’articolo 13, comma 6 dell’Allegato A alla deliberazione 501/2014/R/com emesse nell’anno Y",null,"Punti di prelievo di clienti domestici in BT","Altri punti di prelievo in BT"]
[null,null,null,null,null," (anno di riferimento del dato: 2016)"]
[]
[]
[null,null,10,"Bollc,anteYEM_SC - nei casi in cui l’esercente la maggior tutela nell’anno Y-1 non abbia raggiunto il livello a di cui alla Tabella 13, per ciascuna delle tipologie di clienti c di cui al comma 2.3, lettere a) e c), il numero di bollette contenenti lo sconto di cui all’articolo 13, comma 6 dell’Allegato A alla deliberazione 501/2014/R/com emesse nell’anno Y-1",null,"Punti di prelievo di clienti domestici in BT  ","Altri punti di prelievo in BT"]
[null,null,null,null,null," (anno di riferimento del dato: Y - 1. Attenzione: per l'anno 2016 le celle non devono essere valorizzate)"]
[]
[]
[null,null,11,"Bollc,Y-2EM_FE - per ciascuna delle tipologie di clienti c di cui al comma 2.3, lettere a) e c), con riferimento alle determinazioni relative agli anni 2016 e 2017, il numero di bollette in formato elettronico emesse nell’anno Y-2",null,"Punti di prelievo di clienti domestici in BT","Altri punti di prelievo in BT"]
[null,null,null,null,null," (anno di riferimento del dato: 2014)"]
[]
[]
[null,null,12,"Bollc,YPeriod - per ciascuna delle tipologie di clienti c di cui al comma 2.3, lettere a) e c), il numero di bollette annue da emettere ai sensi della regolazione vigente nell’anno Y",null,"Punti di prelievo di clienti domestici in BT","Altri punti di prelievo in BT"]
[null,null,null,null,null," (anno di riferimento del dato: 2016)"]
[]
[]
[null,null,13,"Bollc,anteYPeriod - nei casi in cui l’esercente la maggior tutela nell’anno Y-1 non abbia raggiunto il livello a di cui alla Tabella 13, per ciascuna delle tipologie di clienti c di cui al comma 2.3, lettere a) e c), il numero di bollette annue da emettere ai sensi della regolazione vigente nell’anno Y-1",null,"Punti di prelievo di clienti domestici in BT","Altri punti di prelievo in BT"]
[null,null,null,null,null," (anno di riferimento del dato: Y - 1. Attenzione: per l'anno 2016 le celle non devono essere valorizzate)"]
[]
[]
[null,null,14,"Bollc,Y-2Period -per ciascuna delle tipologie di clienti c di cui al comma 2.3, lettere a) e c), con riferimento alle determinazioni relative agli anni 2016 e 2017, il numero di bollette annue da emettere ai sensi della regolazione vigente nell’anno di Y-2",null,"Punti di prelievo di clienti domestici in BT","Altri punti di prelievo in BT"]
[null,null,null,null,null," (anno di riferimento del dato: 2014)"]
[]
[]
[null,"Rev. 1"]

{"sheet":"3) Parametri","index":3,"n_rows":8,"n_cols":8,"rows_kept":8,"cut":false,"hidden":false,"merged":[[1,5,3,5],[1,6,1,7],[3,6,3,7],[1,1,1,2],[1,0,3,0]]}
[]
["Tabella 13 del TIV","Livelli  soglia  di  cui  al  comma  16quinquies.3  per  la  partecipazione  al meccanismo incentivante per una maggiore diffusione della bolletta elettronica.",null,null,null,"Tabella 14 del TIV","Ammontare di reintegrazione, per tipologia di cliente finale - meccanismo incentivante per una maggiore diffusione della bolletta elettronica."]
[null,"a","b",null,null,null,"Lettera  a)  Punti  di  prelievo  di clienti domestici in bassa tensione","Lettera    c) - Altri    punti    di prelievo in bassa tensione"]
[null,7.0000000000000007E-2,0.5,null,null,null,"euro/punto di prelievo"]
[null,null,null,null,null,"DiffSCc,Y>10",3.3,3.7]
[null,null,null,null,null,"DiffSCc,Y<10",2.1,2.2999999999999998]
[]
["Rev. 1"]

{"sheet":"4) Risultati di calcolo","index":4,"n_rows":50,"n_cols":7,"rows_kept":50,"cut":false,"hidden":false,"merged":[[47,5,47,6],[29,5,29,6],[30,5,30,6],[35,5,35,6],[41,5,41,6],[2,9,4,16],[32,8,32,11],[2,3,2,4],[2,5,2,6],[3,3,3,4],[3,5,3,6],[7,5,7,6],[13,5,13,6],[19,5,19,6],[23,5,23,6]]}
[]
[]
[null,null,null,"Ragione sociale esercente il servizio di Maggior Tutela",null,{"$f":"'1) Dati PDP dichiarati '!F3:G3","v":0}]
[null,null,null,"P.IVA",null,{"$f":"'1) Dati PDP dichiarati '!F4:G4","v":{"$error":"#N/A"}}]
[]
[]
[]
[null,null,null,null,null,"Calcolo valore di Xc"]
[null,null,null,null,null,"Punti di prelievo di clienti domestici in BT","Altri punti di prelievo in BT"]
[null,null,null,null,null,{"$f":"IFERROR('1) Dati PDP dichiarati '!F22/'1) Dati PDP dichiarati '!F26,0)","v":0},{"$f":"IFERROR('1) Dati PDP dichiarati '!G22/'1) Dati PDP dichiarati '!G26,0)","v":0}]
[]
[]
[]
[null,null,null,null,null,"Calcolo valore di PDPc,YSC"]
[null,null,null,null,null,"Punti di prelievo di clienti domestici in BT","Altri punti di prelievo in BT"]
[null,null,null,null,null,{"$f":"IFERROR('1) Dati PDP dichiarati '!F22*'2) Dati Bollette dichiarati'!F9/'2) Dati Bollette dichiarati'!F21,0)","v":0},{"$f":"IFERROR('1) Dati PDP dichiarati '!G22*'2) Dati Bollette dichiarati'!G9/'2) Dati Bollette dichiarati'!G21,)","v":0}]
[]
[]
[]
[null,null,null,null,null,"Calcolo valore di PDPc,anteYSC"]
[null,null,null,null,null,"Punti di prelievo di clienti domestici in BT","Altri punti di prelievo in BT"]
[null,null,null,null,null,{"$f":"IFERROR('1) Dati PDP dichiarati '!F30*'2) Dati Bollette dichiarati'!F13/'2) Dati Bollette dichiarati'!F25,0)","v":0},{"$f":"IFERROR('1) Dati PDP dichiarati '!G30*'2) Dati Bollette dichiarati'!G13/'2) Dati Bollette dichiarati'!G25,0)","v":0}]
[]
[null,null,null,null,null,"Calcolo valore di PDPc,Y-2FE"]
[null,null,null,null,null,"Punti di prelievo di clienti domestici in BT","Altri punti di prelievo in BT"]
[null,null,null,null,null,{"$f":"IFERROR('1) Dati PDP dichiarati '!F34*'2) Dati Bollette dichiarati'!F17/'2) Dati Bollette dichiarati'!F29,0)","v":0},{"$f":"IFERROR('1) Dati PDP dichiarati '!G34*'2) Dati Bollette dichiarati'!G17/'2) Dati Bollette dichiarati'!G29,0)","v":0}]
[]
[]
[]
[null,null,null,null,null,"Calcolo valore di REINT_SCc,Y"]
[null,null,null,null,null,"(per Y = 2016, 2017)"]
[null,null,null,null,null,"Punti di prelievo di clienti domestici in BT","Altri punti di prelievo in BT"]
[null,null,null,null,null,{"$f":"IF('1) Dati PDP dichiarati '!$F$17=\"NO\",'3) Parametri'!$G$6*($F$16+$F$22+$F$26),'3) Parametri'!$G$5*($F$16+$F$22+$F$26))","v":0},{"$f":"IF('1) Dati PDP dichiarati '!$F$17=\"NO\",'3) Parametri'!$H$6*($G$16+$G$22+$G$26),'3) Parametri'!$H$5*($G$16+$G$22+$G$26))","v":0}]
[]
[]
[null,null,null,null,null,"Calcolo valore di a"]
[null,null,null,null,null,"Punti di prelievo di clienti domestici in BT","Altri punti di prelievo in BT"]
[null,null,null,null,null,{"$f":"IF(F10<0.07,0,IF(AND(F10>0.07,F10<0.5),(F10-0.07)/(0.5-0.07),1))","v":0},{"$f":"IF(G10<0.07,0,IF(AND(G10>0.07,G10<0.5),(G10-0.07)/(0.5-0.07),1))","v":0}]
[]
[]
[]
[null,null,null,null,null,"Calcolo valore di ACSC"]
[null,null,null,null,null,"Punti di prelievo di clienti domestici in BT","Altri punti di prelievo in BT"]
[null,null,null,null,null,{"$f":"IF('1) Dati PDP dichiarati '!F9=\"NO\",0,F38*F33)","v":0},{"$f":"IF('1) Dati PDP dichiarati '!G9=\"NO\",0,G38*G33)","v":0}]
[]
[]
[]
[null,null,null,null,null,{"$f":"F44+G44","v":0}]
[]
[null,"Rev. 1"]

{"sheet":"Service","index":5,"n_rows":150,"n_cols":14,"rows_kept":150,"cut":false,"hidden":false,"merged":[[1,5,1,13]]}
[]
[null,null,"Menù a tendina scelta cella F8 in foglio 1) Dati PDP dichiarati",null,null,"Elenco esercenti EMT"]
[null,null,"SI",null,null,"Ragione Sociale","Codice Fiscale","Partita Iva","Indirizzo","Citta","CAP","Provincia","Regione","Tipologia"]
[null,null,"NO"]
[null,null,null,null,null,"A.E.C. Vipiteno","81005970215","00126510213","Via Dante, 5","VIPITENO","39049","BOLZANO","TRENTINO ALTO ADIGE","Distr + EMT"]
[null,null,null,null,null,"A.E.M. TIRANO SPA ","00864910146","00864910146","VIA S. AGOSTINO, 13","TIRANO","23037","SONDRIO","LOMBARDIA","Distr + EMT"]
[null,null,null,null,null,"A.S.SE.M. SPA","","01210650436","LOC. COLOTTO, 11","SAN SEVERINO MARCHE","62027","MACERATA","MARCHE","Distr + EMT"]
[null,null,null,null,null,"A2A ENERGIA S.P.A.","","12883420155","Corso di Porta Vittoria, 4","MILANO","20122","MILANO","LOMBARDIA","EMT puro"]
[null,null,null,null,null,"ACEA ENERGIA SPA","07305361003","07305361003","PIAZZALE OSTIENSE, 2","ROMA","00144","ROMA","LAZIO","EMT puro"]
[null,null,null,null,null,"ACSM Trading srl","01900420223","01900420223","Via guadagnini 31","FIERA DI PRIMIERO","38054","TRENTO","TRENTINO ALTO ADIGE","EMT puro"]
[null,null,null,null,null,"AEVV ENERGIE S.R.L.","00806850145","00806850145","VIA RAGAZZI DEL '99, 19","SONDRIO","23100","SONDRIO","LOMBARDIA","EMT puro"]
[null,null,null,null,null,"AGSM ENERGIA SPA","02968430237","02968430237","Via Lungadige Galtarossa, 8 8 - 37133 Verona (Verona)","VERONA","37121","VERONA","VENETO","EMT puro"]
[null,null,null,null,null,"AIM ENERGY SRL","","03013930247","Contrà Pedemuro San Biagio 72","VICENZA","36100","VICENZA","VENETO","EMT puro"]
[null,null,null,null,null,"ALPERIA ENERGY SRL","01745520211","01745520211","VIA DODICIVILLE 8","BOLZANO","39100","BOLZANO","TRENTINO ALTO ADIGE","EMT puro"]
[null,null,null,null,null,"Alperia Spa","","02858310218","via Dodiciville 8","BOLZANO","39100","BOLZANO","TRENTINO ALTO ADIGE","EMT puro"]
[null,null,null,null,null,"ALTO GARDA SERVIZI COMMERCIALE S.P.A.","01812900221","01812900221","VIA ARDARO, 27","RIVA DEL GARDA","38066","TRENTO","TRENTINO ALTO ADIGE","EMT puro"]
[null,null,null,null,null,"AMAIE SpA","00399050087","00399050087","Via Armea 96","SANREMO","18038","IMPERIA","LIGURIA","Distr + EMT"]
[null,null,null,null,null,"AMEA SPA","02066710605","02066710605","VIALE SAN FRANCESCO D'ASSISI 15/C","PALIANO","03018","FROSINONE","LAZIO","Distr + EMT"]
[null,null,null,null,null,"AMET Spa","","04938250729","Piazza Plebiscito, 20","TRANI","70059","BARI","PUGLIA","Distr + EMT"]
[null,null,null,null,null,"AMIAS SERVIZI SRL","02127560163","02127560163","CORSO MILANO19","SELVINO","24020","BERGAMO","LOMBARDIA","Distr + EMT"]
[null,null,null,null,null,"ASM - Azienda Servizi Municipalizzati Laces","00100580216","00100580216","Piazza Principale, 6","LACES","39021","BOLZANO","TRENTINO ALTO ADIGE","Distr + EMT"]
[null,null,null,null,null,"ASM Bressanone Spa","01717730210","01717730210","Via Alfred Ammon 24","BRESSANONE","39042","BOLZANO","TRENTINO ALTO ADIGE","Distr + EMT"]
[null,null,null,null,null,"ASM ENERGIA E AMBIENTE S.R.L.","03504970173","03504970173","VIA LAMARMORA, 230","BRESCIA","25124","BRESCIA","LOMBARDIA","EMT puro"]
[null,null,null,null,null,"ASM Silandro","82005970213","01095160212","Via Prinicipale 120","SILANDRO","39028","BOLZANO","TRENTINO ALTO ADIGE","Distr + EMT"]
[null,null,null,null,null,"ASM TIONE DI TRENTO","","01531350229","VIA STENICO 11","TIONE DI TRENTO","38079","TRENTO","TRENTINO ALTO ADIGE","Distr + EMT"]
[null,null,null,null,null,"ASM VENDITA E SERVIZI SRL ","","01991100189","VIA GASOMETRO 17","VOGHERA","27058","PAVIA","LOMBARDIA","EMT puro"]
[null,null,null,null,null,"ASM VOGHERA SPA","","01429910183","VIA POZZONI 2","VOGHERA","27058","PAVIA","LOMBARDIA","Distr + EMT"]
[null,null,null,null,null,"ASPM Soresina Servizi Srl","","01300290192","Via Cairoli, 17","SORESINA","26015","CREMONA","LOMBARDIA","Distr + EMT"]
[null,null,null,null,null,"ASTEA ENERGIA SPA","02078510423","02078510423","Via Guazzatore, 163","OSIMO","60027","ANCONA","MARCHE","EMT puro"]
[null,null,null,null,null,"ASTEA SPA","01501460438","01501460438","VIA L. GIGLI, 2","RECANATI","62019","MACERATA","MARCHE","Distr + EMT"]
[null,null,null,null,null,"Atena Trading srl","","02064090026","C.so Palestro n. 126","VERCELLI","13100","VERCELLI","PIEMONTE","EMT puro"]
[null,null,null,null,null,"AURINO - ENERGIA S.R.L.","00742610215","00742610215","FRAZ. CADIPIETRA, 109/B","VALLE AURINA","39030","BOLZANO","TRENTINO ALTO ADIGE","Distr + EMT"]
[null,null,null,null,null,"AZ. EL. HALLER SAS DI KRUSELBURGHER ANDREAS S.A.S.","01545520213","01545520213","Masseria 22","RACINES","39040","BOLZANO","TRENTINO ALTO ADIGE","Distr + EMT"]
[null,null,null,null,null,"AZ. EL. WEISSTEINER S.R.L. ","01508980214","01508980214","Via Kahler, 17","CHIENES","39030","BOLZANO","TRENTINO ALTO ADIGE","Distr + EMT"]
[null,null,null,null,null,"AZ. ELETTRICA EREDI DI BRUNNER JOSEF","01711310217","01711310217","MASSERIA, 1   LOC. RIDANNA","RACINES","39040","BOLZANO","TRENTINO ALTO ADIGE","Distr + EMT"]
[null,null,null,null,null,"AZIENDA CONSORZIALE SERVIZI MUNICIPALIZZATI S.p.A.","","00124190224","Via A. Guadagnini, 31","FIERA DI PRIMIERO","38054","TRENTO","TRENTINO ALTO ADIGE","Distr + EMT"]
[null,null,null,null,null,"Azienda Elettrica Anterselva S.r.l.","00100010214","00100010214","Fraz. Anterselva di Mezzo, 152","RASUN ANTERSELVA","39030","BOLZANO","TRENTINO ALTO ADIGE","Distr + EMT"]
[null,null,null,null,null,"Azienda Elettrica Chienes S.R.L.","00159160217","00159160217","Via Gruenbach 28","CHIENES","39030","BOLZANO","TRENTINO ALTO ADIGE","Distr + EMT"]
[null,null,null,null,null,"AZIENDA ELETTRICA COMUNALE - TUENNO","00256610221",null,"PIAZZA DELLA LIBERAZIONE, 34","TUENNO","38019","TRENTO","TRENTINO ALTO ADIGE","Distr + EMT"]
[null,null,null,null,null,"Azienda Elettrica Dobbiaco S.P.A.","00099970212","00099970212","Piazza Municipio","DOBBIACO","39034","BOLZANO","TRENTINO ALTO ADIGE","Distr + EMT"]
[null,null,null,null,null,"Azienda Elettrica Groebner Pilling Helga CO S.A.S.","01190060218","01190060218","Via Mulino 3","BRENNERO","39041","BOLZANO","TRENTINO ALTO ADIGE","Distr + EMT"]
[null,null,null,null,null,"Azienda Elettrica Preims SRL","02591000217","02591000217","Anello Nord 25","BRUNICO","39031","BOLZANO","TRENTINO ALTO ADIGE","Distr + EMT"]
[null,null,null,null,null,"Azienda Elettrica S. Martino S.R.L.","01035730215","01035730215","Paese 46","SAN MARTINO IN PASSIRIA","39010","BOLZANO","TRENTINO ALTO ADIGE","Distr + EMT"]
[null,null,null,null,null,"Azienda Elettrica Stein S.N.C.","01569400219","01569400219","Sasso, 92","VAL DI VIZZE","39049","BOLZANO","TRENTINO ALTO ADIGE","Distr + EMT"]
[null,null,null,null,null,"AZIENDA ENERGETICA VALTELLINA VALCHIAVENNA S.P.A.","00743600140","00743600140","VIA SANT'AGOSTINO, 13","TIRANO","23037","SONDRIO","LOMBARDIA","Distr + EMT"]
[null,null,null,null,null,"Azienda Pubbliservizi Brunico","","00734480213","Via Anello Nord, 19","BRUNICO","39031","BOLZANO","TRENTINO ALTO ADIGE","Distr + EMT"]
[null,null,null,null,null,"Azienda Servizi Polverigi S.r.l.","","02062980426","Via Marconi, 51","POLVERIGI","60020","ANCONA","MARCHE","Distr + EMT"]
[null,null,null,null,null,"AZIENDA SONDRIESE MULTISERVIZI S.P.A.","00686710146","00686710146","VIA RAGAZZI DEL '99, 19","SONDRIO","23100","SONDRIO","LOMBARDIA","Distr + EMT"]
[null,null,null,null,null,"AZIENDA SPECIALIZZATA SETTORE MULTISERVIZI SPA","","01210690432","corso Garibaldi 78","TOLENTINO","62029","MACERATA","MARCHE","Distr + EMT"]
[null,null,null,null,null,"C.V.A. TRADING S.r.l. a s.u.","01032450072","01032450072","Via Stazione, 31","CHATILLON","11024","AOSTA","VALLE D'AOSTA","EMT puro"]
[null,null,null,null,null,"Camuna Energia S.r.l.","","02144820988","Piazza Roma, 1","CEDEGOLO","25051","BRESCIA","LOMBARDIA","Distr + EMT"]
[null,null,null,null,null,"CASA DI RECLUSIONE GORGONA ISOLA",null,null,"TORRE NUOVA, 1","GORGONA ISOLA","57030","LIVORNO","TOSCANA","Distr + EMT"]
[null,null,null,null,null,"Centrale Elettrica S.N.C. Colz Spessa","01456270212","01456270212","Spessa 224","LA VALLE","39030","BOLZANO","TRENTINO ALTO ADIGE","Distr + EMT"]
[null,null,null,null,null,"CHRISTIAN LEIMEGGER - A.E. COSTA DI ONIES","LMGCRS67M18B220Y","01654980216","VIA ALTHING, 50","BRUNICO","39031","BOLZANO","TRENTINO ALTO ADIGE","Distr + EMT"]
[null,null,null,null,null,"COMUNE ANVERSA DEGLI ABRUZZI","00161690664","00161690664","via GIAMBATTISTA MANSO, 5, ","ANVERSA DEGLI ABRUZZI","67030","L'AQUILA","ABRUZZO","Distr + EMT"]
[null,null,null,null,null,"COMUNE CASTEL DEL MONTE","80002030668","00114540669","VIA DEL MUNICIPIO N. 1","CASTEL DEL MONTE","67023","L'AQUILA","ABRUZZO","Distr + EMT"]
[null,null,null,null,null,"COMUNE CASTELLO MOLINA DI FIEMME","00128850229","00128850229","VIA ROMA,38","CASTELLO-MOLINA DI FIEMME","38030","TRENTO","TRENTINO ALTO ADIGE","Distr + EMT"]
[null,null,null,null,null,"COMUNE DI ANDALO","00319630224","00319630224","PIAZZA CENTRALE NR. 1","ANDALO","38010","TRENTO","TRENTINO ALTO ADIGE","Distr + EMT"]
[null,null,null,null,null,"COMUNE DI AVIO","00110390226","00110390226","PIAZZA VITTORIO EMANUELE III°, 1","AVIO","38063","TRENTO","TRENTINO ALTO ADIGE","Distr + EMT"]
[null,null,null,null,null,"COMUNE DI AVIO","00110390226","00110390226","PIAZZA VITTORIO EMANUELE III°, 1","AVIO","38063","TRENTO","TRENTINO ALTO ADIGE","EMT puro"]
[null,null,null,null,null,"Comune di Benetutti","00289880908","00289880908","Corso Cocco Ortu 76","BENETUTTI","07010","SASSARI","SARDEGNA","Distr + EMT"]
[null,null,null,null,null,"COMUNE DI BERCHIDDA","","00111140901","PIAZZA DEL POPOLO 5","BERCHIDDA","07022","OLBIA-TEMPIO","SARDEGNA","Distr + EMT"]
[null,null,null,null,null,"COMUNE DI CAMPO TURES - AZIENDA ELETTRICA ED ACQUEDOTTO","81003390218","00129330213","VIA DEL MUNICIPIO, 8","CAMPO TURES","39032","BOLZANO","TRENTINO ALTO ADIGE","Distr + EMT"]
[null,null,null,null,null,"Comune di Castiglione di Sicilia","00291090876","","Piazza Lauria 1","CASTIGLIONE DI SICILIA","95012","CATANIA","SICILIA","Distr + EMT"]
[null,null,null,null,null,"COMUNE DI CAVALESE","00270680226","00124130220","VIA SAN SEBASTIANO,7","CAVALESE","38033","TRENTO","TRENTINO ALTO ADIGE","Distr + EMT"]
[null,null,null,null,null,"COMUNE DI CHIOMONTE","","01933150011","VIA VESCOVADO, 1","CHIOMONTE","10050","TORINO","PIEMONTE","Distr + EMT"]
[null,null,null,null,null,"Comune di Exilles","04223300015","04223300015","Piazza Vittorio Emanuele II, 2","EXILLES","10050","TORINO","PIEMONTE","Distr + EMT"]
[null,null,null,null,null,"COMUNE DI FAI DELLA PAGANELLA","00431040229","00431040229","VIA VILLA, 21","FAI DELLA PAGANELLA","38010","TRENTO","TRENTINO ALTO ADIGE","Distr + EMT"]
[null,null,null,null,null,"COMUNE DI FRANCAVILLA DI SICILIA","MNOPQL53D11B591R","00159650837","P.ZZA ANNUNZIATA, 3","FRANCAVILLA DI SICILIA","98034","MESSINA","SICILIA","Distr + EMT"]
[null,null,null,null,null,"COMUNE DI ISERA","","00203870225","Via Angelo Ravagni, 8","ISERA","38060","TRENTO","TRENTINO ALTO ADIGE","Distr + EMT"]
[null,null,null,null,null,"COMUNE DI LILLIANES - AEM","00109080077","00109080077","VIA ROMA, 35","LILLIANES","11020","AOSTA","VALLE D'AOSTA","Distr + EMT"]
[null,null,null,null,null,"COMUNE DI MAGLIANO DI TENNA","00169370442","00169370442","PIAZZA GRAMSCI 25","MAGLIANO DI TENNA","63832","FERMO","MARCHE","Distr + EMT"]
[null,null,null,null,null,"COMUNE DI MOLVENO","00149120222","00149120222","PIAZZA MARCONI N. 1","MOLVENO","38018","TRENTO","TRENTINO ALTO ADIGE","Distr + EMT"]
[null,null,null,null,null,"COMUNE DI NOVALESA","","00878080019","VIA SUSA 19","NOVALESA","10050","TORINO","PIEMONTE","Distr + EMT"]
[null,null,null,null,null,"COMUNE DI OSCHIRI SERVIZI ELETTRICI","00110800901","00110800901","VIA MARCONI, 9","OSCHIRI","07027","OLBIA-TEMPIO","SARDEGNA","Distr + EMT"]
[null,null,null,null,null,"COMUNE DI OSSANA - AEC","00159240225","00159240225","VIA VENEZIA 1","OSSANA","38026","TRENTO","TRENTINO ALTO ADIGE","Distr + EMT"]
[null,null,null,null,null,"COMUNE DI PACENTRO","83000650669","00196170666","VIA S. MARIA MAGGIORE 22","PACENTRO","67030","L'AQUILA","ABRUZZO","Distr + EMT"]
[null,null,null,null,null,"COMUNE DI PALU' DEL FERSINA SERVIZI ELETTRICI","80007010228","80007010228","FRAZIONE LOCALITA' LENZI, 42","PALU' DEL FERSINA","38050","TRENTO","TRENTINO ALTO ADIGE","Distr + EMT"]
[null,null,null,null,null,"COMUNE DI PARCINES","82003190210","00100510213","VIA DEL MAESTRO 1","PARCINES","39020","BOLZANO","TRENTINO ALTO ADIGE","Distr + EMT"]
[null,null,null,null,null,"Comune di Perdifumo","00222010654","00222010654","piazza municipio,1","PERDIFUMO","84060","SALERNO","CAMPANIA","Distr + EMT"]
[null,null,null,null,null,"COMUNE DI RONCO CANAVESE","","01487160010","P.ZZA MUNICIPIO 1","RONCO CANAVESE","10080","TORINO","PIEMONTE","Distr + EMT"]
[null,null,null,null,null,"COMUNE DI RONCONE ","00367180221","00414880229","PIAZZA CESARE BATTISTI, 1","RONCONE","38087","TRENTO","TRENTINO ALTO ADIGE","Distr + EMT"]
[null,null,null,null,null,"COMUNE DI SALBERTRAND","","00881010011","Piazza Martiri della Liberta' 1","SALBERTRAND","10050","TORINO","PIEMONTE","Distr + EMT"]
[null,null,null,null,null,"COMUNE DI SANTO STEFANO DI SESSANIO","00173470667","00173470667","VIA BENEDETTA S.N.C.","SANTO STEFANO DI SESSANIO","67020","L'AQUILA","ABRUZZO","Distr + EMT"]
[null,null,null,null,null,"COMUNE DI SANT'ORSOLA TERME","00149220220","00149220220","FRAZIONE LOCALITA' PINTAREI, 55","SANT'ORSOLA TERME","38050","TRENTO","TRENTINO ALTO ADIGE","Distr + EMT"]
[null,null,null,null,null,"Comune di Saracinesco","02145961005","02145961005","Piazza Roma, 3","SARACINESCO","00020","ROMA","LAZIO","Distr + EMT"]
[null,null,null,null,null,"COMUNE DI SELLA GIUDICARIE","02401900226","02401900226","PIAZZA CESARE BATTISTI 1","SELLA GIUDICARIE","38087","TRENTO","TRENTINO ALTO ADIGE","Distr + EMT"]
[null,null,null,null,null,"COMUNE DI SESSA CILENTO S.D.E.E.","","00234990653","VIA ROMA, 13","SESSA CILENTO","84074","SALERNO","CAMPANIA","Distr + EMT"]
[null,null,null,null,null,"Comune di Silandro","82005970213","01095160212","via Stazione 16","SILANDRO","39028","BOLZANO","TRENTINO ALTO ADIGE","Distr + EMT"]
[null,null,null,null,null,"COMUNE DI TELTI SERVIZI ELETTRICI","00124140906","00124140906","VIA J.F. KENNEDY, 2","TELTI","07020","OLBIA-TEMPIO","SARDEGNA","Distr + EMT"]
[null,null,null,null,null,"Comune di Tires - Azienda Elettrica","","00186560215","Via San Giorgio, 38","TIRES","39050","BOLZANO","TRENTINO ALTO ADIGE","Distr + EMT"]
[null,null,null,null,null,"COMUNE DI TRES SERVIZI ELETTRICI","00382330223","00382330223","VIA NAZIONALE, 8","TRES","38010","TRENTO","TRENTINO ALTO ADIGE","Distr + EMT"]
[null,null,null,null,null,"COMUNE DI USSITA SERVIZI ELETTRICI","81001810431","00166310433","P.ZZA XI FEBBRAIO, 5","USSITA","62039","MACERATA","MARCHE","Distr + EMT"]
[null,null,null,null,null,"comune di Valprato Soana","02216150017","02216150017","Via Roma 9","VALPRATO SOANA","10080","TORINO","PIEMONTE","Distr + EMT"]
[null,null,null,null,null,"COMUNE DI VERMIGLIO","00343510228","00343510228","PIAZZA GIOVANNI XXIII, 1","VERMIGLIO","38029","TRENTO","TRENTINO ALTO ADIGE","Distr + EMT"]
[null,null,null,null,null,"COMUNE DI VERMIGLIO","00343510228","00343510228","PIAZZA GIOVANNI XXIII, 1","VERMIGLIO","38029","TRENTO","TRENTINO ALTO ADIGE","EMT puro"]
[null,null,null,null,null,"Comune di Villa Latina","00605750603","00605750603","Piazza Umberto I, 10","VILLA LATINA","03040","FROSINONE","LAZIO","Distr + EMT"]
[null,null,null,null,null,"COMUNE ROCCA PIA","","00144520665","PIAZZA SAN ROCCO 12","ROCCA PIA","67030","L'AQUILA","ABRUZZO","Distr + EMT"]
[null,null,null,null,null,"Consorzio Energetico Val Venosta Società Cooperativa in breve \"VEK\"","01732180219","01732180219","Via Principale 134","SILANDRO","39028","BOLZANO","TRENTINO ALTO ADIGE","Distr + EMT"]
[null,null,null,null,null,"Consorzio per i Servizi Territoriali del Noce","02044520225","02044520225","Corso Dante, 28","CLES","38023","TRENTO","TRENTINO ALTO ADIGE","Distr + EMT"]
[null,null,null,null,null,"Consorzio per i Servizi Territoriali del Noce - STN Val di Sole","02345700229","02345700229","Piazza Regina Elena, 17","MALE'","38027","TRENTO","TRENTINO ALTO ADIGE","Distr + EMT"]
[null,null,null,null,null,"Consorzio Utenti Luce Elettrica Salza di Pinerolo","94520750012","","Borgata Didiero 24","SALZA DI PINEROLO","10060","TORINO","PIEMONTE","Distr + EMT"]
[null,null,null,null,null,"Ditta Innerbichler Franz","NNRFNZ44D18B160J","00748640216","Via San Giacomo, 76","VALLE AURINA","39030","BOLZANO","TRENTINO ALTO ADIGE","Distr + EMT"]
[null,null,null,null,null,"Ditta Kirchler Josef","00091880211","00091880211","Frazione San Giovanni 3","VALLE AURINA","39030","BOLZANO","TRENTINO ALTO ADIGE","Distr + EMT"]
[null,null,null,null,null,"DOLOMITI ENERGIA S.P.A. (ex Trenta SpA)","","01812630224","Via Fersina, 23","TRENTO","38123","TRENTO","TRENTINO ALTO ADIGE","EMT puro"]
[null,null,null,null,null,"EnergiaBaseTrieste srl","03679070288","03679070288","Via del Teatro, 5","TRIESTE","34012","TRIESTE","FRIULI VENEZIA GIULIA","EMT puro"]
[null,null,null,null,null,"ENERGIE OFFIDA SRL","01745750446","01745750446","VIA A. DE GASPERI, 13","OFFIDA","63073","ASCOLI PICENO","MARCHE","Distr + EMT"]
[null,null,null,null,null,"ENI Società per azioni","00484960588","00905811006","Piazzale Enrico Mattei n1","ROMA","00144","ROMA","LAZIO","EMT puro"]
[null,null,null,null,null,"ENIA ENERGIA S.R.L.","02220020347","02220020347","Strada S.Margherita, 6/A","PARMA","43100","PARMA","EMILIA ROMAGNA","EMT puro"]
[null,null,null,null,null,"EST PIU' S.P.A.","01136310313","01136310313","VIA IX AGOSTO 15","GORIZIA","34170","GORIZIA","FRIULI VENEZIA GIULIA","EMT puro"]
[null,null,null,null,null,"EST PIU' S.P.A. ex NEWCO ENERGIA S.R.L.",null,null,"VIA IX AGOSTO, 15","GORIZIA","34170","GORIZIA","FRIULI VENEZIA GIULIA","Distr + EMT"]
[null,null,null,null,null,"E-WERK BRUNNER GMBH","02661190211","02661190211","RIDANNA - MASSERIA, 3","RACINES","39040","BOLZANO","TRENTINO ALTO ADIGE","Distr + EMT"]
[null,null,null,null,null,"GELSIA ENERGIA S.R.L.","03525690966","03525690966","VIA F.LLI BANDIERA, 26","SEREGNO","20038","MILANO","LOMBARDIA","EMT puro"]
[null,null,null,null,null,"GELSIA SRL","","05970420963","VIA PALESTRO, 33","SEREGNO","20831","MONZA E BRIANZA","LOMBARDIA","EMT puro"]
[null,null,null,null,null,"Germano industrie elettriche srl","","04353900725","via zuppetta 7/D","BARI","70121","BARI","PUGLIA","Distr + EMT"]
[null,null,null,null,null,"Hera Comm srl","","02221101203","via Molino Rosso 8","IMOLA","40026","BOLOGNA","EMILIA ROMAGNA","EMT puro"]
[null,null,null,null,null,"Hofer Ernst","HFRRST63H19L595Z","02337740217","Cadipietra 27","VALLE AURINA","39030","BOLZANO","TRENTINO ALTO ADIGE","Distr + EMT"]
[null,null,null,null,null,"IDROELETTRICA VALCANALE S.A.S.","00190600304","00190600304","VIA OFFICINE 8-10","TARVISIO","33018","UDINE","FRIULI VENEZIA GIULIA","Distr + EMT"]
[null,null,null,null,null,"IMPRESA CAMPO ELETTRICITA' I.C.EL. S.R.L.","","00581500816","VIA CALVARIO, 35","LEVANZO","91023","TRAPANI","SICILIA","Distr + EMT"]
[null,null,null,null,null,"Impresa Elettrica D'Anna e Bonaccorsi s.r.l.","00138700828","00138700828","Via C. Colombo n.3","USTICA","90010","PALERMO","SICILIA","Distr + EMT"]
[null,null,null,null,null,"IMPRESA PRODUZIONE ENERGIA ELETTRICA DI PESENTI F. E C. SNC","01081560037","01081560037","VIA VECCHIA CASERMA 1","CRODO","28862","VERBANO-CUSIO-OSSOLA","PIEMONTE","Distr + EMT"]
[null,null,null,null,null,"Interessenza Elettrica Vicinia Armentarola","00307790212","00307790212","Strada Micurà de Ru, 20","BADIA","39030","BOLZANO","TRENTINO ALTO ADIGE","Distr + EMT"]
[null,null,null,null,null,"INTERESSENZA UTILIZZAZIONI IDRAULICHE PEDRACES - COSTALTA","","01065190215","VIA COSTALTA, 2","BADIA","39036","BOLZANO","TRENTINO ALTO ADIGE","Distr + EMT"]
[null,null,null,null,null,"IREN MERCATO S.P.A.","","01178580997","VIA SS. GIACOMO E FILIPPO 7","GENOVA","16121","GENOVA","LIGURIA","EMT puro"]
[null,null,null,null,null,"IRIS - ISONTINA RETI INTEGRATE E SERVIZI S.P.A.","01040450312","01040450312","VIA IX AGOSTO, 15","GORIZIA","34170","GORIZIA","FRIULI VENEZIA GIULIA","Distr + EMT"]
[null,null,null,null,null,"LINEA PIU' S.P.A.","","01275720199","VIA DONEGANI, 21","PAVIA","27100","PAVIA","LOMBARDIA","EMT puro"]
[null,null,null,null,null,"Linea Reti e Impianti Srl","01336340193","01336340193","Viale Trento e Trieste, 38","CREMONA","26100","CREMONA","LOMBARDIA","Distr + EMT"]
[null,null,null,null,null,"MARCHE ENERGIE SRL","","01372690527","VIALE P. TOSELLI","SIENA","53100","SIENA","TOSCANA","EMT puro"]
[null,null,null,null,null,"odoardo zecca srl","00225170687","00225170687","via piave 133","ORTONA","66026","CHIETI","ABRUZZO","Distr + EMT"]
[null,null,null,null,null,"Officina Elettrica San Vigilio di Marebbe SPA","","00099990210","str. Plan de Corones 38","MAREBBE","39030","BOLZANO","TRENTINO ALTO ADIGE","Distr + EMT"]
[null,null,null,null,null,"PROMETEO S.P.A.","02089000422","02089000422","VIA ADRIATICA 2 S.S. 16 KM 309","OSIMO","60027","ANCONA","MARCHE","EMT puro"]
[null,null,null,null,null,"S.EL.I.S. Lampedusa S.p.A.","03620850820","03620850820","Viale Strasburgo, 189","PALERMO","90146","PALERMO","SICILIA","Distr + EMT"]
[null,null,null,null,null,"S.EL.I.S. Linosa S.p.A.","03620870828","03620870828","Viale Strasburgo, 189","PALERMO","90146","PALERMO","SICILIA","Distr + EMT"]
[null,null,null,null,null,"S.EL.I.S. Marettimo S.p.A.","03620890826","03620890826","Viale Strasburgo, 189","PALERMO","90146","PALERMO","SICILIA","Distr + EMT"]
[null,null,null,null,null,"S.MED.E. Pantelleria S.p.A.","03620860829","03620860829","Viale Strasburgo, 189","PALERMO","90146","PALERMO","SICILIA","Distr + EMT"]
[null,null,null,null,null,"Sachsenklemme KG des Ganterer Roland & Co","01682860216","01682860216","Via Sacco 1","FORTEZZA","39045","BOLZANO","TRENTINO ALTO ADIGE","Distr + EMT"]
[null,null,null,null,null,"Schwienbacher Oswald & Co. Az. El. S.n.c.","00154910210","00154910210","Via Principale, 112","SANTA VALBURGA ULTIMO*, ST.WALBURG ULTE","39016","BOLZANO","TRENTINO ALTO ADIGE","Distr + EMT"]
[null,null,null,null,null,"SEA Società Elettrica di Favignana SpA","","03349270821","Via Emerico Amari, 8","FAVIGNANA","91023","TRAPANI","SICILIA","Distr + EMT"]
[null,null,null,null,null,"SERVIZIO ELETTRICO NAZIONALE S.P.A. ","09633951000","09633951000","VIALE REGINA MARGHERITA, 125","ROMA","00198","ROMA","LAZIO","EMT puro"]
[null,null,null,null,null,"Sippic spa","00274940634","00274940634","via rossini 22","NAPOLI","80100","NAPOLI","CAMPANIA","Distr + EMT"]
[null,null,null,null,null,"SOCIETA' ELETTRICA LA BRUZOLESE SRL","","00801350018","VIA CASSANERA 1","BRUZOLO","10050","TORINO","PIEMONTE","Distr + EMT"]
[null,null,null,null,null,"SOCIETA' ELETTRICA LIPARESE SRL","","00071220834","Via F. Crispi, 86","LIPARI","98055","MESSINA","SICILIA","Distr + EMT"]
[null,null,null,null,null,"SOCIETA' ELETTRICA PONZESE S.P.A","00091020594","00091020594","Via Panoramica.34","PONZA","04027","LATINA","LAZIO","Distr + EMT"]
[null,null,null,null,null,"SOCIETA IMPIANTI ELETTRICI  S.I.E. SRL","","00394730485","VIA CONDOTTA 10","FIRENZE","50122","FIRENZE","TOSCANA","Distr + EMT"]
[null,null,null,null,null,"Società Nolana Imprese Elettriche SpA","00277940631","01238661217","Via Ottaviano Augusto 10","NOLA","80035","NAPOLI","CAMPANIA","Distr + EMT"]
[null,null,null,null,null,"SOCIETA' SERVIZI VALDISOTTO S.P.A.","00682520143","00682520143","VIA ROMA - FRAZIONE CEPINA","CEPINA VALDISOTTO","23030","SONDRIO","LOMBARDIA","Distr + EMT"]
[null,null,null,null,null,"Soresina Reti e Impianti Srl","","01300300199","Via Cairoli, 17","SORESINA","26015","CREMONA","LOMBARDIA","Distr + EMT"]
[null,null,null,null,null,"UMBRIA ENERGY SPA","01313790550","01313790550","VIA BRUNO CAPPONI, 100","TERNI","05100","TERNI","UMBRIA","EMT puro"]
[null,null,null,null,null,"Valle Camonica Servizi Vendite S.p.A.","","02349420980","Via Mario Rigamonti, N. 65","DARFO BOARIO TERME","25047","BRESCIA","LOMBARDIA","EMT puro"]
[null,null,null,null,null,"VALLENERGIE Spa a s.u.","01112220072","01112220072","VIA CLAVALITE' 8","AOSTA","11100","AOSTA","VALLE D'AOSTA","EMT puro"]